[Event "NJSK 2023 Jeugd C"]
[Site "Almelo, Netherlands"]
[Date "2023.05.04"]
[Round "6.13"]
[White "Frederiks, Jesse"]
[Black "Wortman, Rawi"]
[Result "0-1"]
[TimeControl "90min/40moves + 30min + 30sec/move"]
[WhiteElo "1510"]
[BlackElo "1668"]

1. d4 {[%clk 01:30:57]} {[%emt 00:00:02]} Nf6 {[%clk 01:30:57]} {[%emt
00:00:04]} 2. c4 {[%clk 01:31:24]} {[%emt 00:00:04]} e6 {[%clk 01:31:23]}
{[%emt 00:00:03]} 3. Nc3 {[%clk 01:31:49]} {[%emt 00:00:05]} Bb4 {[%clk
01:31:49]} {[%emt 00:00:05]} 4. Nf3 {[%clk 01:32:05]} {[%emt 00:00:13]} O-O
{[%clk 01:31:21]} {[%emt 00:00:58]} 5. Bg5 {[%clk 01:32:20]} {[%emt 00:00:15]}
h6 {[%clk 01:28:45]} {[%emt 00:03:06]} 6. Bh4 {[%clk 01:32:43]} {[%emt
00:00:08]} d5 {[%clk 01:28:16]} {[%emt 00:00:59]} 7. e3 {[%clk 01:32:06]}
{[%emt 00:01:06]} Nbd7 {[%clk 01:25:45]} {[%emt 00:03:02]} 8. a3 {[%clk
01:31:03]} {[%emt 00:01:33]} Be7 {[%clk 01:24:51]} {[%emt 00:01:24]} 9. Bd3
{[%clk 01:28:52]} {[%emt 00:02:40]} b6 {[%emt 00:10:46]} 10. cxd5 {[%clk
01:24:20]} exd5 {[%clk 01:18:24]} {[%emt 00:01:45]} 11. O-O {[%clk 01:24:01]}
{[%emt 00:00:48]} Bb7 {[%clk 01:11:05]} {[%emt 00:07:50]} 12. Rc1 {[%clk
01:20:44]} {[%emt 00:03:46]} Ne4 {[%clk 01:07:04]} {[%emt 00:04:32]} 13. Bxe7
{[%clk 01:19:57]} {[%emt 00:01:16]} Qxe7 {[%clk 01:07:32]} {[%emt 00:00:02]} 14.
Bxe4 {[%clk 01:10:40]} {[%emt 00:09:47]} dxe4 {[%clk 01:07:51]} {[%emt
00:00:12]} 15. Nd2 {[%clk 01:09:54]} {[%emt 00:01:14]} Nf6 {[%clk 00:52:21]}
{[%emt 00:16:00]} 16. Qb3 {[%clk 01:05:32]} {[%emt 00:04:51]} Rfd8 {[%clk
00:46:20]} {[%emt 00:06:33]} 17. Rfd1 {[%clk 01:01:10]} {[%emt 00:04:52]} Rac8
{[%clk 00:39:54]} {[%emt 00:06:56]} 18. Nf1 {[%clk 00:57:39]} {[%emt 00:04:00]}
g6 {[%clk 00:34:51]} {[%emt 00:05:33]} 19. Ng3 {[%clk 00:51:38]} {[%emt
00:06:28]} h5 {[%clk 00:32:40]} {[%emt 00:02:45]} 20. Nge2 {[%clk 00:45:35]}
{[%emt 00:06:33]} Kg7 {[%clk 00:27:59]} {[%emt 00:05:12]} 21. Rc2 {[%clk
00:40:56]} {[%emt 00:05:08]} Rh8 {[%clk 00:25:24]} {[%emt 00:03:04]} 22. h3
{[%clk 00:38:31]} {[%emt 00:02:55]} h4 {[%clk 00:23:08]} {[%emt 00:02:47]} 23.
d5 {[%clk 00:35:28]} {[%emt 00:03:33]} g5 {[%clk 00:18:09]} {[%emt 00:05:29]}
24. Nd4 {[%clk 00:32:15]} {[%emt 00:03:42]} Qe5 {[%clk 00:16:55]} {[%emt
00:01:44]} 25. Kf1 {[%clk 00:29:42]} {[%emt 00:03:04]} g4 {[%clk 00:14:05]}
{[%emt 00:03:20]} 26. hxg4 {[%clk 00:29:27]} {[%emt 00:00:45]} Nxg4 {[%clk
00:12:31]} {[%emt 00:02:04]} 27. Ke1 {[%clk 00:27:56]} {[%emt 00:02:01]} Ba6
{[%clk 00:10:11]} {[%emt 00:02:50]} 28. Kd2 {[%clk 00:26:53]} {[%emt 00:01:33]}
Nxf2 {[%clk 00:09:49]} {[%emt 00:00:51]} 29. Re1 {[%clk 00:26:14]} {[%emt
00:01:10]} Nd3 {[%clk 00:09:44]} {[%emt 00:00:36]} 30. Rf1 {[%clk 00:26:00]}
{[%emt 00:00:44]} Nc5 {[%clk 00:09:35]} {[%emt 00:00:39]} 31. Rxf7+ {[%clk
00:25:08]} {[%emt 00:01:22]} Kxf7 {[%clk 00:09:25]} {[%emt 00:00:40]} 32. Qa2
{[%clk 00:25:27]} {[%emt 00:00:11]} Ke8 {[%clk 00:08:51]} {[%emt 00:01:04]} 33.
Nc6 {[%clk 00:24:56]} {[%emt 00:01:01]} Qg3 {[%clk 00:08:47]} {[%emt 00:00:33]}
34. Nd4 {[%clk 00:23:11]} {[%emt 00:02:16]} Qxg2+ {[%clk 00:08:59]} {[%emt
00:00:18]} 35. Nce2 {[%clk 00:23:34]} {[%emt 00:00:08]} Bxe2 {[%clk 00:08:53]}
{[%emt 00:00:36]} 36. Nxe2 {[%clk 00:23:57]} {[%emt 00:00:07]} h3 {[%clk
00:08:50]} {[%emt 00:00:33]} 37. d6 {[%clk 00:24:22]} {[%emt 00:00:05]} Qg8
{[%clk 00:08:41]} {[%emt 00:00:38]} 38. Qb1 {[%clk 00:24:30]} {[%emt 00:00:23]}
Qd5+ {[%clk 00:08:46]} {[%emt 00:00:24]} 39. Nd4 {[%clk 00:24:30]} {[%emt
00:00:31]} cxd6 {[%clk 00:08:12]} {[%emt 00:01:04]} 40. Rxc5 {[%clk 00:24:27]}
{[%emt 00:00:33]} dxc5 {[%clk 00:08:11]} {[%emt 00:00:31]} 41. Qg1 {[%clk
00:24:36]} {[%emt 00:00:20]} Rg8 {[%clk 00:08:07]} {[%emt 00:00:34]} 42. Qh2
{[%clk 00:24:47]} {[%emt 00:00:19]} Rg2+ {[%clk 00:08:28]} {[%emt 00:00:09]} 43.
Qxg2 {[%clk 00:25:01]} {[%emt 00:00:16]} hxg2 {[%clk 00:08:52]} {[%emt
00:00:06]} 44. b4 {[%clk 00:25:23]} {[%emt 00:00:09]} cxd4 {[%clk 00:09:14]}
{[%emt 00:00:08]} 45. a4 {[%clk 00:25:39]} {[%emt 00:00:14]} dxe3+ {[%clk
00:09:32]} {[%emt 00:00:12]} 46. Kxe3 {[%clk 00:25:53]} {[%emt 00:00:16]} g1=Q+
{[%clk 00:09:52]} {[%emt 00:00:10]} 47. Kf4 {[%clk 00:26:19]} {[%emt 00:00:04]}
Qf1+ {[%clk 00:10:06]} {[%emt 00:00:15]} 48. Kg4 {[%clk 00:26:42]} {[%emt
00:00:07]} Qg8+ {[%clk 00:10:29]} {[%emt 00:00:08]} 49. Kh4 {[%clk 00:27:06]}
{[%emt 00:00:06]} Qh1# {[%clk 00:10:53]} {[%emt 00:00:06]} 0-1

[Event "NJSK 2023 Jeugd C"]
[Site "Almelo, Netherlands"]
[Date "2023.05.04"]
[Round "6.14"]
[White "Verwer, Oscar"]
[Black "Zootjes, Aäron"]
[Result "1-0"]
[TimeControl "90min/40moves + 30min + 30sec/move"]
[WhiteElo "1549"]
[BlackElo "1172"]

1. e4 {[%clk 01:30:58]} {[%emt 00:00:02]} c5 {[%clk 01:30:55]} {[%emt
00:00:05]} 2. d4 {[%clk 01:31:24]} {[%emt 00:00:03]} cxd4 {[%clk 01:31:14]}
{[%emt 00:00:11]} 3. c3 {[%clk 01:31:50]} {[%emt 00:00:04]} dxc3 {[%clk
01:31:36]} {[%emt 00:00:08]} 4. Nxc3 {[%clk 01:32:07]} {[%emt 00:00:13]} Nc6
{[%clk 01:31:52]} {[%emt 00:00:14]} 5. Nf3 {[%clk 01:32:16]} {[%emt 00:00:21]}
e6 {[%clk 01:32:07]} {[%emt 00:00:14]} 6. Bc4 {[%clk 01:32:20]} {[%emt
00:00:26]} Qc7 {[%clk 01:32:13]} {[%emt 00:00:23]} 7. O-O {[%clk 01:32:25]}
{[%emt 00:00:26]} Nf6 {[%clk 01:32:26]} {[%emt 00:00:17]} 8. Nb5 {[%clk
01:32:43]} {[%emt 00:00:12]} Qb8 {[%clk 01:32:23]} {[%emt 00:00:33]} 9. e5
{[%clk 01:32:48]} {[%emt 00:00:25]} Nxe5 {[%clk 01:31:28]} {[%emt 00:01:24]} 10.
Nxe5 {[%clk 01:32:51]} {[%emt 00:00:27]} Qxe5 {[%clk 01:31:46]} {[%emt
00:00:13]} 11. Re1 {[%clk 01:33:07]} {[%emt 00:00:14]} Qb8 {[%clk 01:29:35]}
{[%emt 00:02:41]} 12. Qd4 {[%clk 01:25:22]} {[%emt 00:08:15]} d6 {[%clk
01:28:03]} {[%emt 00:02:03]} 13. Bf4 {[%clk 01:13:27]} {[%emt 00:12:25]} Kd7
{[%clk 01:21:24]} {[%emt 00:07:08]} 14. Rad1 {[%clk 01:01:33]} {[%emt
00:12:24]} Ne8 {[%clk 01:20:33]} {[%emt 00:01:22]} 15. Qe5 {[%clk 00:46:02]}
{[%emt 00:16:01]} Kd8 {[%clk 01:16:21]} {[%emt 00:04:42]} 16. Bg3 {[%clk
00:33:44]} {[%emt 00:12:47]} Bd7 {[%clk 01:12:27]} {[%emt 00:04:24]} 17. Qf4
{[%clk 00:26:35]} {[%emt 00:07:39]} a6 {[%clk 01:09:37]} {[%emt 00:03:21]} 18.
Nd4 {[%clk 00:22:21]} {[%emt 00:04:44]} Qc8 {[%clk 01:06:56]} {[%emt 00:03:11]}
19. Qxf7 {[%clk 00:19:20]} {[%emt 00:03:29]} Qxc4 {[%clk 00:59:53]} {[%emt
00:07:34]} 20. Bh4+ {[%clk 00:19:17]} {[%emt 00:00:34]} Nf6 {[%clk 00:59:32]}
{[%emt 00:00:51]} 21. Bxf6+ {[%clk 00:19:03]} {[%emt 00:00:45]} gxf6 {[%clk
00:59:42]} {[%emt 00:00:19]} 22. Qxf6+ {[%clk 00:16:23]} {[%emt 00:03:10]} 1-0

[Event "NJSK 2023 Jeugd C"]
[Site "Almelo, Netherlands"]
[Date "2023.05.04"]
[Round "6.15"]
[White "De Wit, Evan"]
[Black "Klein Tuente, Sam"]
[Result "0-1"]
[TimeControl "90min/40moves + 30min + 30sec/move"]
[WhiteElo "1563"]
[BlackElo "1478"]

1. e4 {[%clk 01:30:58]} {[%emt 00:00:01]} c5 {[%clk 01:30:57]} {[%emt
00:00:04]} 2. Nf3 {[%clk 01:31:23]} {[%emt 00:00:05]} Nc6 {[%clk 01:31:15]}
{[%emt 00:00:11]} 3. d4 {[%clk 01:31:48]} {[%emt 00:00:05]} cxd4 {[%clk
01:31:42]} {[%emt 00:00:04]} 4. Nxd4 {[%clk 01:32:11]} {[%emt 00:00:06]} Nf6
{[%clk 01:30:22]} {[%emt 00:01:50]} 5. Nc3 {[%clk 01:32:28]} {[%emt 00:00:13]}
e6 {[%clk 01:29:49]} {[%emt 00:01:03]} 6. a3 {[%clk 01:32:20]} {[%emt
00:00:38]} a6 {[%clk 01:29:36]} {[%emt 00:00:44]} 7. Be3 {[%clk 01:31:47]}
{[%emt 00:01:02]} Be7 {[%clk 01:28:24]} {[%emt 00:01:42]} 8. Be2 {[%clk
01:31:55]} {[%emt 00:00:23]} d5 {[%clk 01:28:14]} {[%emt 00:00:40]} 9. exd5
{[%clk 01:32:01]} {[%emt 00:00:23]} exd5 {[%clk 01:27:50]} {[%emt 00:00:54]} 10.
Bf3 {[%clk 01:31:08]} {[%emt 00:01:23]} Be6 {[%clk 01:24:59]} {[%emt 00:03:22]}
11. h3 {[%clk 01:30:52]} {[%emt 00:00:46]} h6 {[%clk 01:24:09]} {[%emt
00:01:21]} 12. Qd2 {[%clk 01:29:53]} {[%emt 00:01:28]} Ne5 {[%clk 01:21:36]}
{[%emt 00:03:03]} 13. Be2 {[%clk 01:30:07]} {[%emt 00:00:16]} Qc7 {[%clk
01:19:40]} {[%emt 00:02:27]} 14. f4 {[%clk 01:29:25]} {[%emt 00:01:11]} Nc4
{[%clk 01:17:15]} {[%emt 00:02:55]} 15. Bxc4 {[%clk 01:29:37]} {[%emt
00:00:18]} dxc4 {[%clk 01:16:33]} {[%emt 00:01:12]} 16. O-O-O {[%clk 01:29:19]}
{[%emt 00:00:48]} Bd5 {[%clk 01:12:55]} {[%emt 00:04:09]} 17. Rhg1 {[%clk
01:28:58]} {[%emt 00:00:50]} O-O-O {[%clk 01:12:01]} {[%emt 00:01:24]} 18. Qf2
{[%clk 01:26:25]} {[%emt 00:03:01]} Bc5 {[%clk 01:09:21]} {[%emt 00:03:12]} 19.
Qh4 {[%clk 01:23:14]} {[%emt 00:03:40]} Rhe8 {[%clk 01:07:48]} {[%emt
00:02:04]} 20. Bf2 {[%clk 01:19:00]} {[%emt 00:04:42]} Qa5 {[%clk 01:05:29]}
{[%emt 00:02:50]} 21. Be1 {[%clk 01:09:32]} {[%emt 00:09:57]} Bxa3 {[%clk
00:55:25]} {[%emt 00:10:36]} 22. Nxd5 {[%clk 01:07:50]} {[%emt 00:02:11]} Bxb2+
{[%clk 00:55:06]} {[%emt 00:00:49]} 23. Kxb2 {[%clk 01:07:09]} {[%emt
00:01:11]} Qxd5 {[%clk 00:55:29]} {[%emt 00:00:08]} 24. Qg3 {[%clk 01:04:28]}
{[%emt 00:03:10]} Qc5 {[%clk 00:52:49]} {[%emt 00:03:11]} 25. Qa3 {[%clk
01:02:19]} {[%emt 00:02:38]} Qxa3+ {[%clk 00:47:14]} {[%emt 00:06:06]} 26. Kxa3
{[%clk 01:02:37]} {[%emt 00:00:11]} Re4 {[%clk 00:47:37]} {[%emt 00:00:07]} 27.
c3 {[%clk 01:01:17]} {[%emt 00:01:50]} Rxf4 {[%clk 00:45:47]} {[%emt 00:02:19]}
28. Bg3 {[%clk 01:01:11]} {[%emt 00:00:37]} Re4 {[%clk 00:45:48]} {[%emt
00:00:29]} 29. Kb4 {[%clk 01:01:12]} {[%emt 00:00:29]} Nd5+ {[%clk 00:40:14]}
{[%emt 00:06:04]} 30. Kxc4 {[%clk 00:59:51]} {[%emt 00:01:50]} Ne3+ {[%clk
00:39:10]} {[%emt 00:01:36]} 31. Kd3 {[%clk 00:59:59]} {[%emt 00:00:22]} Nxd1
{[%clk 00:39:13]} {[%emt 00:00:27]} 32. Kxe4 {[%clk 00:59:16]} {[%emt
00:01:13]} Nxc3+ {[%clk 00:39:20]} {[%emt 00:00:24]} 33. Kd3 {[%clk 00:58:35]}
{[%emt 00:01:11]} Rxd4+ {[%clk 00:38:25]} {[%emt 00:01:25]} 34. Kxc3 {[%clk
00:58:48]} {[%emt 00:00:17]} Re4 {[%clk 00:37:47]} {[%emt 00:01:07]} 35. Kd3
{[%clk 00:58:59]} {[%emt 00:00:20]} Ra4 {[%clk 00:37:42]} {[%emt 00:00:35]} 36.
Be5 {[%clk 00:58:57]} {[%emt 00:00:31]} f6 {[%clk 00:37:35]} {[%emt 00:00:39]}
37. Bd6 {[%clk 00:58:52]} {[%emt 00:00:34]} Ra5 {[%clk 00:35:18]} {[%emt
00:02:47]} 38. Rc1+ {[%clk 00:56:19]} {[%emt 00:03:02]} Kd7 {[%clk 00:34:10]}
{[%emt 00:01:37]} 39. Bf8 {[%clk 00:56:37]} {[%emt 00:00:12]} Rg5 {[%clk
00:34:15]} {[%emt 00:00:26]} 40. g4 {[%clk 00:56:23]} {[%emt 00:00:44]} f5
{[%clk 00:32:24]} {[%emt 00:02:21]} 41. Rb1 {[%clk 00:51:04]} {[%emt 00:05:49]}
fxg4 {[%clk 00:30:50]} {[%emt 00:02:04]} 42. hxg4 {[%clk 00:50:44]} {[%emt
00:00:49]} Kc6 {[%clk 00:30:12]} {[%emt 00:01:09]} 43. Rc1+ {[%clk 00:50:42]}
{[%emt 00:00:32]} Kb6 {[%clk 00:29:42]} {[%emt 00:01:00]} 44. Rb1+ {[%clk
00:50:41]} {[%emt 00:00:30]} Ka7 {[%clk 00:29:54]} {[%emt 00:00:19]} 45. Rb4
{[%clk 00:50:04]} {[%emt 00:01:05]} b5 {[%clk 00:26:53]} {[%emt 00:03:32]} 46.
Rf4 {[%clk 00:50:00]} {[%emt 00:00:34]} Kb6 {[%clk 00:26:40]} {[%emt 00:00:44]}
47. Ke4 {[%clk 00:49:09]} {[%emt 00:01:19]} a5 {[%clk 00:26:08]} {[%emt
00:01:02]} 48. Be7 {[%clk 00:48:15]} {[%emt 00:01:23]} Rg6 {[%clk 00:26:22]}
{[%emt 00:00:17]} 49. Kf5 {[%clk 00:47:54]} {[%emt 00:00:50]} Rc6 {[%clk
00:26:35]} {[%emt 00:00:17]} 50. Ke5 {[%clk 00:47:01]} {[%emt 00:01:23]} b4
{[%clk 00:25:49]} {[%emt 00:01:17]} 51. Kd4 {[%clk 00:46:41]} {[%emt 00:00:49]}
Kb5 {[%clk 00:25:10]} {[%emt 00:01:10]} 52. Rf5+ {[%clk 00:46:41]} {[%emt
00:00:29]} Ka4 {[%clk 00:25:07]} {[%emt 00:00:33]} 53. Rf1 {[%clk 00:44:01]}
{[%emt 00:03:09]} Kb3 {[%clk 00:24:35]} {[%emt 00:01:05]} 54. Bc5 {[%clk
00:41:08]} {[%emt 00:03:22]} Ka2 {[%clk 00:19:46]} {[%emt 00:05:20]} 55. Rf2+
{[%clk 00:40:59]} {[%emt 00:00:38]} Kb3 {[%clk 00:19:02]} {[%emt 00:01:14]} 56.
Rf3+ {[%clk 00:41:03]} {[%emt 00:00:26]} Ka4 {[%clk 00:19:16]} {[%emt
00:00:16]} 57. Kc4 {[%clk 00:40:34]} {[%emt 00:00:59]} b3 {[%clk 00:18:58]}
{[%emt 00:00:48]} 58. Rf1 {[%clk 00:39:35]} {[%emt 00:01:27]} b2 {[%clk
00:18:38]} {[%emt 00:00:51]} 59. Rb1 {[%clk 00:37:23]} {[%emt 00:02:42]} Rxc5
{[%clk 00:18:02]} {[%emt 00:01:07]} 60. Kxc5 {[%clk 00:37:26]} {[%emt
00:00:27]} Kb3 {[%clk 00:18:19]} {[%emt 00:00:13]} 61. Kb5 {[%clk 00:37:09]}
{[%emt 00:00:46]} a4 {[%clk 00:18:34]} {[%emt 00:00:16]} 62. Rh1 {[%clk
00:36:52]} {[%emt 00:00:46]} a3 {[%clk 00:18:53]} {[%emt 00:00:11]} 63. Rh3+
{[%clk 00:36:34]} {[%emt 00:00:48]} Ka2 {[%clk 00:18:57]} {[%emt 00:00:27]} 64.
Ka4 {[%clk 00:35:55]} {[%emt 00:01:09]} b1=Q {[%clk 00:19:00]} {[%emt
00:00:27]} 65. Rxa3+ {[%clk 00:36:01]} {[%emt 00:00:24]} Kb2 {[%clk 00:19:24]}
{[%emt 00:00:06]} 66. Rb3+ {[%clk 00:36:05]} {[%emt 00:00:26]} Kc2 {[%clk
00:19:44]} {[%emt 00:00:08]} 67. Rxb1 {[%clk 00:36:27]} {[%emt 00:00:09]} Kxb1
{[%clk 00:20:07]} {[%emt 00:00:07]} 68. Kb3 {[%clk 00:36:52]} {[%emt 00:00:04]}
Kc1 {[%clk 00:18:44]} {[%emt 00:01:54]} 69. Kc3 {[%clk 00:37:17]} {[%emt
00:00:05]} Kd1 {[%clk 00:19:08]} {[%emt 00:00:05]} 70. Kd3 {[%clk 00:37:42]}
{[%emt 00:00:06]} Ke1 {[%clk 00:19:21]} {[%emt 00:00:17]} 71. Ke3 {[%clk
00:38:06]} {[%emt 00:00:06]} Kf1 {[%clk 00:19:19]} {[%emt 00:00:33]} 72. Kf3
{[%clk 00:38:31]} {[%emt 00:00:05]} Kg1 {[%clk 00:19:39]} {[%emt 00:00:10]} 73.
Kg3 {[%clk 00:38:54]} {[%emt 00:00:06]} g5 {[%clk 00:19:34]} {[%emt 00:00:36]}
0-1

[Event "NJSK 2023 Jeugd C"]
[Site "Almelo, Netherlands"]
[Date "2023.05.04"]
[Round "7.1"]
[White "Kurt, Sascha"]
[Black "Arnold, Rhys"]
[Result "1/2-1/2"]
[TimeControl "90min/40moves + 30min + 30sec/move"]
[WhiteElo "1894"]
[BlackElo "2003"]

1. e4 {[%clk 01:30:54]} {[%emt 00:00:05]} c5 {[%clk 01:30:44]} {[%emt
00:00:17]} 2. Nf3 {[%clk 01:31:16]} {[%emt 00:00:08]} Nc6 {[%clk 01:31:12]}
{[%emt 00:00:03]} 3. d4 {[%clk 01:31:32]} {[%emt 00:00:13]} cxd4 {[%clk
01:31:39]} {[%emt 00:00:03]} 4. Nxd4 {[%clk 01:31:58]} {[%emt 00:00:04]} Nf6
{[%clk 01:31:57]} {[%emt 00:00:13]} 5. Nc3 {[%clk 01:32:19]} {[%emt 00:00:09]}
e5 {[%clk 01:32:19]} {[%emt 00:00:08]} 6. Ndb5 {[%clk 01:32:20]} {[%emt
00:00:29]} d6 {[%clk 01:30:56]} {[%emt 00:01:54]} 7. Bg5 {[%clk 01:30:07]}
{[%emt 00:02:42]} a6 {[%clk 01:31:23]} {[%emt 00:00:03]} 8. Na3 {[%clk
01:30:33]} {[%emt 00:00:03]} b5 {[%clk 01:31:50]} {[%emt 00:00:03]} 9. Nd5
{[%clk 01:30:58]} {[%emt 00:00:05]} Be7 {[%clk 01:32:18]} {[%emt 00:00:02]} 10.
Bxf6 {[%clk 01:31:22]} {[%emt 00:00:06]} Bxf6 {[%clk 01:32:46]} {[%emt
00:00:02]} 11. c4 {[%clk 01:31:30]} {[%emt 00:00:22]} b4 {[%clk 01:33:11]}
{[%emt 00:00:05]} 12. Nc2 {[%clk 01:31:56]} {[%emt 00:00:03]} O-O {[%clk
01:33:38]} {[%emt 00:00:04]} 13. g3 {[%clk 01:31:09]} {[%emt 00:01:16]} a5
{[%clk 01:33:57]} {[%emt 00:00:12]} 14. Bg2 {[%clk 01:31:28]} {[%emt 00:00:09]}
Bg5 {[%clk 01:34:17]} {[%emt 00:00:10]} 15. O-O {[%clk 01:31:41]} {[%emt
00:00:18]} Bb7 {[%clk 01:33:59]} {[%emt 00:00:49]} 16. Qd3 {[%clk 01:27:55]}
{[%emt 00:04:16]} Ne7 {[%clk 01:34:14]} {[%emt 00:00:15]} 17. Nde3 {[%clk
01:27:05]} {[%emt 00:01:19]} Qb6 {[%clk 01:18:31]} {[%emt 00:16:14]} 18. Rfd1
{[%clk 01:24:07]} {[%emt 00:03:27]} Rfd8 {[%clk 01:18:19]} {[%emt 00:00:41]} 19.
b3 {[%clk 01:21:06]} {[%emt 00:03:32]} Qc5 {[%clk 01:11:17]} {[%emt 00:07:31]}
20. h4 {[%clk 01:13:36]} {[%emt 00:08:00]} Bxe3 {[%clk 01:11:25]} {[%emt
00:00:18]} 21. Qxe3 {[%clk 01:12:05]} {[%emt 00:02:05]} Nc6 {[%clk 01:05:57]}
{[%emt 00:05:59]} 22. Rd3 {[%clk 01:10:33]} {[%emt 00:02:02]} a4 {[%clk
00:59:53]} {[%emt 00:06:34]} 1/2-1/2

[Event "NJSK 2023 Jeugd C"]
[Site "Almelo, Netherlands"]
[Date "2023.05.04"]
[Round "7.2"]
[White "Groenewoud, Joel"]
[Black "Madularea, David"]
[Result "1/2-1/2"]
[TimeControl "90min/40moves + 30min + 30sec/move"]
[WhiteElo "1990"]
[BlackElo "1895"]

1. e4 {[%clk 01:30:59]} {[%emt 00:00:02]} c5 {[%clk 01:30:54]} {[%emt
00:00:06]} 2. Nf3 {[%clk 01:31:20]} {[%emt 00:00:08]} d6 {[%clk 01:31:17]}
{[%emt 00:00:06]} 3. d4 {[%clk 01:31:47]} {[%emt 00:00:05]} cxd4 {[%clk
01:31:42]} {[%emt 00:00:05]} 4. Nxd4 {[%clk 01:32:12]} {[%emt 00:00:04]} Nf6
{[%clk 01:32:06]} {[%emt 00:00:04]} 5. Nc3 {[%clk 01:32:37]} {[%emt 00:00:07]}
a6 {[%clk 01:32:31]} {[%emt 00:00:05]} 6. f3 {[%clk 01:33:02]} {[%emt
00:00:05]} e6 {[%clk 01:32:46]} {[%emt 00:00:15]} 7. g4 {[%clk 01:33:27]}
{[%emt 00:00:06]} h6 {[%clk 01:32:43]} {[%emt 00:00:32]} 8. Be3 {[%clk
01:33:44]} {[%emt 00:00:13]} b5 {[%clk 01:32:58]} {[%emt 00:00:16]} 9. a3
{[%clk 01:33:01]} {[%emt 00:01:13]} Nbd7 {[%clk 01:31:56]} {[%emt 00:01:31]} 10.
Qd2 {[%clk 01:31:02]} {[%emt 00:02:29]} Bb7 {[%clk 01:30:11]} {[%emt 00:02:14]}
11. O-O-O {[%clk 01:30:31]} {[%emt 00:01:02]} Rc8 {[%clk 01:25:58]} {[%emt
00:04:42]} 12. h4 {[%clk 01:28:46]} {[%emt 00:02:15]} d5 {[%clk 01:23:52]}
{[%emt 00:02:36]} 13. exd5 {[%clk 01:20:21]} {[%emt 00:08:55]} Nxd5 {[%clk
01:23:42]} {[%emt 00:00:38]} 14. Nxd5 {[%clk 01:20:29]} {[%emt 00:00:23]} Bxd5
{[%clk 01:24:06]} {[%emt 00:00:06]} 15. Be2 {[%clk 01:15:10]} {[%emt 00:05:48]}
Ne5 {[%clk 01:19:29]} {[%emt 00:05:08]} 16. Kb1 {[%clk 01:12:13]} {[%emt
00:03:28]} Bd6 {[%clk 01:13:48]} {[%emt 00:06:10]} 17. h5 {[%clk 01:07:25]}
{[%emt 00:05:19]} Qe7 {[%clk 01:02:15]} {[%emt 00:12:02]} 18. Nf5 {[%clk
01:01:49]} {[%emt 00:06:06]} Qf8 {[%clk 01:00:07]} {[%emt 00:02:37]} 19. Nxd6+
{[%clk 01:01:41]} {[%emt 00:00:39]} Qxd6 {[%clk 01:00:30]} {[%emt 00:00:07]} 20.
Bf4 {[%clk 01:00:18]} {[%emt 00:01:54]} Qc7 {[%clk 00:57:52]} {[%emt 00:03:08]}
21. Rhe1 {[%clk 00:58:03]} {[%emt 00:02:45]} f6 {[%clk 00:48:45]} {[%emt
00:09:36]} 22. Bxe5 {[%clk 00:42:24]} {[%emt 00:16:11]} fxe5 {[%clk 00:49:02]}
{[%emt 00:00:12]} 23. Rg1 {[%clk 00:32:04]} {[%emt 00:10:50]} Qf7 {[%clk
00:37:48]} {[%emt 00:11:43]} 24. Bd3 {[%clk 00:28:33]} {[%emt 00:04:02]} Qf4
{[%clk 00:38:08]} {[%emt 00:00:09]} 25. Bg6+ {[%clk 00:27:56]} {[%emt
00:01:08]} Ke7 {[%clk 00:38:28]} {[%emt 00:00:09]} 26. Qf2 {[%clk 00:23:39]}
{[%emt 00:04:47]} Rc7 {[%clk 00:36:03]} {[%emt 00:02:56]} 27. Qb6 {[%clk
00:17:56]} {[%emt 00:06:13]} Rhc8 {[%clk 00:35:19]} {[%emt 00:01:13]} 28. Rge1
{[%clk 00:14:40]} {[%emt 00:03:46]} Rc6 {[%clk 00:33:36]} {[%emt 00:02:13]} 29.
Qa7+ {[%clk 00:10:45]} {[%emt 00:04:25]} R8c7 {[%clk 00:33:57]} {[%emt
00:00:09]} 30. Qb8 {[%clk 00:10:20]} {[%emt 00:00:56]} Rc8 {[%clk 00:34:16]}
{[%emt 00:00:11]} 31. Qa7+ {[%clk 00:09:56]} {[%emt 00:00:54]} R8c7 {[%clk
00:34:40]} {[%emt 00:00:07]} 32. Qb8 {[%clk 00:10:19]} {[%emt 00:00:07]} Rc8
{[%clk 00:35:05]} {[%emt 00:00:04]} 33. Qa7+ {[%clk 00:10:43]} {[%emt
00:00:06]} R8c7 {[%clk 00:33:34]} {[%emt 00:01:30]} 1/2-1/2